[Event "European Online Club-ch-A 2021"]
[Site "Online"]
[Date "2021.03.27"]
[Round "5.8"]
[White "Sharafiev, Azat"]
[Black "Csonka, Attila Istvan"]
[Result "0-1"]
[ECO "D03"]
[WhiteElo "2432"]
[BlackElo "2362"]
[Annotator "NA"]
[PlyCount "72"]
[EventDate "2021.03.27"]
[EventType "team-tourn"]
[EventCountry "NET"]
[SourceTitle "playchess.com"]
[Source "ChessBase"]
[SourceQuality "1"]
[TimeControl "900+5"]

1. d4 {[%emt 0:00:00]} Nf6 {[%emt 0:00:03]} 2. Nf3 {[%emt 0:00:02]} e6 {[%emt 0:00:02]} 3. Bg5 {[%emt 0:00:03]} h6 {[%emt 0:00:12]} 4. Bh4 {[%emt 0:00:02]} b6 {[%emt 0:00:13]} 5. Nbd2 {[%emt 0:00:17]} Bb7 {[%emt 0:00:09]} 6. e3 {[%emt 0:00:03]} c5 {[%emt 0:00:15]} 7. Bd3 {[%emt 0:00:13]} Be7 {[%emt 0:00:23]} 8. c3 {[%emt 0:00:19]} O-O {[%emt 0:00:24]} 9. O-O {[%emt 0:00:34]} d5 {[%emt 0:00:18]} 10. Ne5 {[%emt 0:01:12]} Nbd7 {[%emt 0:00:05]} 11. f4 {[%emt 0:00:17]} Ne4 {[%emt 0:00:17]} 12. Bxe7 {[%emt 0:03:10]} Qxe7 {[%emt 0:00:04]} 13. Qc2 {[%emt 0:01:50]} Ndf6 {[%emt 0:01:48]} 14. Nxe4 {[%emt 0:00:44]} dxe4 {[%emt 0:00:12]} 15. Bc4 {[%emt 0:00:04]} cxd4 {[%emt 0:00:13]} 16. exd4 {[%emt 0:00:26]} Rac8 {[%emt 0:00:08]} 17. f5 {[%emt 0:00:23]} Bd5 {[%emt 0:00:22]} 18. Bb3 {[%emt 0:00:40]} Rfd8 {[%emt 0:01:27]} 19. Qe2 {[%emt 0:00:22]} Bxb3 {[%emt 0:01:13]} 20. axb3 {[%emt 0:00:02]} a5 {[%emt 0:00:08]} 21. Qb5 {[%emt 0:00:39]} exf5 {[%emt 0:00:49]} 22. Qxb6 {[%emt 0:00:55]} Nd5 {[%emt 0:00:47]} 23. Qxa5 {[%emt 0:00:11]} Qg5 {[%emt 0:00:05]} 24. Qb5 {[%emt 0:01:22]} f4 {[%emt 0:03:05]} 25. Rf2 {[%emt 0:01:25]} f6 {[%emt 0:02:02]} 26. Nc6 {[%emt 0:00:23]} Rd6 {[%emt 0:01:33]} 27. Nb4 {[%emt 0:00:06]} Nxb4 {[%emt 0:00:07]} 28. Qxb4 {[%emt 0:00:03]} Rd5 {[%emt 0:00:10]} 29. Qb7 {[%emt 0:00:11]} Re8 {[%emt 0:00:14]} 30. Ra7 {[%emt 0:00:09]} f3 {[%emt 0:00:07]} 31. Qf7+ {[%emt 0:00:17]} Kh7 {[%emt 0:00:04]} 32. Qxe8 {[%emt 0:00:44]} Qc1+ {[%emt 0:00:05]} 33. Rf1 {[%emt 0:00:01]} Qe3+ {[%emt 0:00:02]} 34. Kh1 {[%emt 0:00:15]} fxg2+ {[%emt 0:00:03]} 35. Kxg2 {[%emt 0:00:03]} Rg5+ {[%emt 0:00:02]} 36. Kh1 {[%emt 0:00:04]} Qe2 {[%emt 0:00:08]} 0-1

[Event "European Online Club-ch-A 2021"]
[Site "Online"]
[Date "2021.03.27"]
[Round "5.10"]
[White "Bacrot, Etienne"]
[Black "Schmidek, Emil"]
[Result "1-0"]
[ECO "B10"]
[WhiteElo "2678"]
[BlackElo "2402"]
[Annotator "ChessBase"]
[PlyCount "145"]
[EventDate "2021.03.27"]
[EventType "team-tourn"]
[EventCountry "NET"]
[SourceTitle "playchess.com"]
[Source "ChessBase"]
[SourceQuality "1"]
[TimeControl "900+5"]

1. e4 {[%emt 0:00:00]} c6 {[%emt 0:00:05]} 2. Nf3 {[%emt 0:00:03]} d5 {[%emt 0:00:06]} 3. d3 {[%emt 0:00:02]} Bg4 {[%emt 0:00:07]} 4. Nbd2 {[%emt 0:00:10]} e6 {[%emt 0:00:17]} 5. h3 {[%emt 0:00:15]} Bxf3 {[%emt 0:00:02]} 6. Nxf3 {[%emt 0:01:22]} dxe4 {[%emt 0:00:03]} 7. dxe4 {[%emt 0:00:01]} Qxd1+ {[%emt 0:00:01]} 8. Kxd1 {[%emt 0:00:01]} Bc5 {[%emt 0:00:01]} 9. Ke1 {[%emt 0:00:11]} Nf6 {[%emt 0:00:27]} 10. Bd3 {[%emt 0:00:21]} h6 {[%emt 0:00:16]} 11. Ke2 {[%emt 0:01:36]} Nbd7 {[%emt 0:00:04]} 12. e5 {[%emt 0:00:18]} Nd5 {[%emt 0:00:12]} 13. c4 {[%emt 0:00:02]} Ne7 {[%emt 0:00:06]} 14. Bd2 {[%emt 0:00:24]} a5 {[%emt 0:00:07]} 15. g3 {[%emt 0:00:20]} Ng6 {[%emt 0:00:25]} 16. Bxg6 {[%emt 0:00:48]} fxg6 {[%emt 0:00:00]} 17. h4 {[%emt 0:00:04]} Ke7 {[%emt 0:00:20]} 18. Rhd1 {[%emt 0:00:05]} Rhf8 {[%emt 0:00:19]} 19. Bf4 {[%emt 0:00:28]} Rad8 {[%emt 0:01:22]} 20. Rd3 {[%emt 0:00:07]} Nb6 {[%emt 0:00:26]} 21. Rxd8 {[%emt 0:00:07]} Rxd8 {[%emt 0:00:22]} 22. b3 {[%emt 0:00:02]} Nd7 {[%emt 0:01:05]} 23. Bd2 {[%emt 0:00:15]} Bb4 {[%emt 0:00:57]} 24. Rd1 {[%emt 0:01:24]} Rf8 {[%emt 0:00:40]} 25. Be3 {[%emt 0:00:23]} Bc3 {[%emt 0:04:34]} 26. Rc1 {[%emt 0:00:50]} Bb2 {[%emt 0:01:15]} 27. Rc2 {[%emt 0:00:03]} Ba1 {[%emt 0:00:03]} 28. Bf4 {[%emt 0:00:07]} Rf5 {[%emt 0:00:39]} 29. Bd2 {[%emt 0:01:07]} Nxe5 {[%emt 0:00:24]} 30. Nxe5 {[%emt 0:00:03]} Rxe5+ {[%emt 0:00:09]} 31. Kd3 {[%emt 0:00:02]} Rf5 {[%emt 0:00:19]} 32. f4 {[%emt 0:00:26]} h5 {[%emt 0:00:14]} 33. Ke4 {[%emt 0:00:20]} c5 {[%emt 0:01:09]} 34. Bxa5 {[%emt 0:00:08]} e5 {[%emt 0:00:22]} 35. Bc7 {[%emt 0:00:10]} Kd7 {[%emt 0:00:48]} 36. Bb8 {[%emt 0:00:20]} Ke6 {[%emt 0:00:02]} 37. Rd2 {[%emt 0:01:11]} Bd4 {[%emt 0:00:05]} 38. a3 {[%emt 0:00:32]} g5 {[%emt 0:00:01]} 39. hxg5 {[%emt 0:01:16]} h4 {[%emt 0:00:02]} 40. Bxe5 {[%emt 0:00:01]} Bxe5 {[%emt 0:00:10]} 41. fxe5 {[%emt 0:00:13]} Rxe5+ {[%emt 0:00:02]} 42. Kf4 {[%emt 0:00:01]} hxg3 {[%emt 0:00:06]} 43. Rg2 {[%emt 0:00:02]} Rf5+ {[%emt 0:00:07]} 44. Kg4 {[%emt 0:00:04]} g6 {[%emt 0:00:11]} 45. Rxg3 {[%emt 0:00:06]} Rf1 {[%emt 0:00:01]} 46. Re3+ {[%emt 0:00:17]} Kd6 {[%emt 0:00:05]} 47. Rd3+ {[%emt 0:00:16]} Ke6 {[%emt 0:00:02]} 48. Re3+ {[%emt 0:00:55]} Kd6 {[%emt 0:00:02]} 49. Rh3 {[%emt 0:00:11]} Rg1+ {[%emt 0:00:06]} 50. Kf4 {[%emt 0:00:03]} Rf1+ {[%emt 0:00:02]} 51. Ke4 {[%emt 0:00:03]} Rg1 {[%emt 0:00:10]} 52. Rd3+ {[%emt 0:00:10]} Ke6 {[%emt 0:00:02]} 53. Rd5 {[%emt 0:00:04]} b6 {[%emt 0:00:06]} 54. Rd8 {[%emt 0:00:36]} Rg3 {[%emt 0:00:13]} 55. Rf8 {[%emt 0:00:02]} Rxg5 {[%emt 0:00:07]} 56. Rb8 {[%emt 0:00:01]} Rg4+ {[%emt 0:00:02]} 57. Kf3 {[%emt 0:00:03]} Rd4 {[%emt 0:00:03]} 58. Rxb6+ {[%emt 0:00:04]} Kf5 {[%emt 0:00:01]} 59. Rb5 {[%emt 0:00:07]} Rd3+ {[%emt 0:00:04]} 60. Ke2 {[%emt 0:00:02]} Ke4 {[%emt 0:00:02]} 61. a4 {[%emt 0:00:26]} Rh3 {[%emt 0:00:18]} 62. a5 {[%emt 0:00:05]} Rh2+ {[%emt 0:00:02]} 63. Kf1 {[%emt 0:00:06]} Kf3 {[%emt 0:00:03]} 64. Kg1 {[%emt 0:00:11]} Rg2+ {[%emt 0:00:02]} 65. Kh1 {[%emt 0:00:14]} Rb2 {[%emt 0:00:07]} 66. Rxc5 {[%emt 0:00:10]} Rxb3 {[%emt 0:00:02]} 67. Rg5 {[%emt 0:00:12]} Ra3 {[%emt 0:00:02]} 68. Kh2 {[%emt 0:00:10]} Ra4 {[%emt 0:00:13]} 69. Rg3+ {[%emt 0:00:13]} Ke4 {[%emt 0:00:09]} 70. Rg4+ {[%emt 0:00:02]} Kf5 {[%emt 0:00:06]} 71. Rg2 {[%emt 0:00:06]} Rxa5 {[%emt 0:00:04]} 72. Rc2 {[%emt 0:00:02]} Rc5 {[%emt 0:00:01]} 73. Kg3 {[%emt 0:00:06]} 1-0

[Event "European Online Club-ch-A 2021"]
[Site "Online"]
[Date "2021.03.27"]
[Round "5.12"]
[White "Naiditsch, Arkadij"]
[Black "Wintzer, Joachim"]
[Result "1-0"]
[ECO "B11"]
[WhiteElo "2649"]
[BlackElo "2274"]
[Annotator "ChessBase"]
[PlyCount "57"]
[EventDate "2021.03.27"]
[EventType "team-tourn"]
[EventCountry "NET"]
[SourceTitle "playchess.com"]
[Source "ChessBase"]
[SourceQuality "1"]
[TimeControl "900+5"]

1. e4 {[%emt 0:00:00]} c6 {[%emt 0:00:06]} 2. Nc3 {[%emt 0:00:11]} d5 {[%emt 0:00:03]} 3. Nf3 {[%emt 0:00:03]} Bg4 {[%emt 0:00:09]} 4. h3 {[%emt 0:00:02]} Bxf3 {[%emt 0:00:06]} 5. Qxf3 {[%emt 0:00:00]} e6 {[%emt 0:00:12]} 6. d3 {[%emt 0:00:01]} Nd7 {[%emt 0:00:39]} 7. Be2 {[%emt 0:00:29]} d4 {[%emt 0:02:19]} 8. Nb1 {[%emt 0:00:21]} e5 {[%emt 0:00:26]} 9. O-O {[%emt 0:00:05]} Ne7 {[%emt 0:00:23]} 10. c3 {[%emt 0:00:07]} c5 {[%emt 0:00:02]} 11. cxd4 {[%emt 0:00:51]} cxd4 {[%emt 0:00:02]} 12. Bd1 {[%emt 0:00:02]} Nc6 {[%emt 0:00:56]} 13. Qg3 {[%emt 0:00:17]} g6 {[%emt 0:00:31]} 14. f4 {[%emt 0:00:15]} Bg7 {[%emt 0:00:59]} 15. Bb3 {[%emt 0:00:21]} Na5 {[%emt 0:01:01]} 16. Bd5 {[%emt 0:00:29]} Nb6 {[%emt 0:00:03]} 17. b4 {[%emt 0:00:39]} Nc6 {[%emt 0:00:14]} 18. Bb3 {[%emt 0:00:19]} O-O {[%emt 0:02:28]} 19. f5 {[%emt 0:00:04]} Kh8 {[%emt 0:00:06]} 20. Ba3 {[%emt 0:00:29]} gxf5 {[%emt 0:01:33]} 21. Rxf5 {[%emt 0:00:13]} Ne7 {[%emt 0:00:07]} 22. Rh5 {[%emt 0:00:30]} Ng6 {[%emt 0:00:08]} 23. Kh2 {[%emt 0:00:49]} Rc8 {[%emt 0:00:09]} 24. b5 {[%emt 0:00:19]} Qd7 {[%emt 0:00:20]} 25. Bxf8 {[%emt 0:00:16]} Rxf8 {[%emt 0:00:24]} 26. Nd2 {[%emt 0:00:03]} Qxb5 {[%emt 0:00:04]} 27. Rf1 {[%emt 0:00:09]} Nf4 {[%emt 0:00:22]} 28. Qxf4 {[%emt 0:00:20]} Qxb3 {[%emt 0:00:10]} 29. Qf5 {[%emt 0:00:08]} 1-0

[Event "European Online Club-ch-A 2021"]
[Site "Online"]
[Date "2021.03.27"]
[Round "5.13"]
[White "Zavgorodniy, Sergiy"]
[Black "Finek, Vaclav"]
[Result "0-1"]
[ECO "C44"]
[WhiteElo "2418"]
[BlackElo "2361"]
[Annotator "NA"]
[PlyCount "52"]
[EventDate "2021.03.27"]
[EventType "team-tourn"]
[EventCountry "NET"]
[SourceTitle "playchess.com"]
[Source "ChessBase"]
[SourceQuality "1"]
[TimeControl "900+5"]

1. e4 {[%emt 0:00:00]} e5 {[%emt 0:00:10]} 2. Nf3 {[%emt 0:00:04]} Nf6 {[%emt 0:00:13]} 3. d3 {[%emt 0:00:06]} Nc6 {[%emt 0:00:04]} 4. Be2 {[%emt 0:00:03]} Be7 {[%emt 0:00:05]} 5. O-O {[%emt 0:00:02]} O-O {[%emt 0:00:03]} 6. c3 {[%emt 0:00:04]} d6 {[%emt 0:00:10]} 7. Re1 {[%emt 0:00:06]} h6 {[%emt 0:00:59]} 8. Nbd2 {[%emt 0:00:06]} Re8 {[%emt 0:00:04]} 9. Nf1 {[%emt 0:00:05]} Be6 {[%emt 0:00:08]} 10. Ng3 {[%emt 0:00:06]} Qd7 {[%emt 0:00:18]} 11. h3 {[%emt 0:00:08]} Rad8 {[%emt 0:00:06]} 12. Qc2 {[%emt 0:00:18]} d5 {[%emt 0:00:49]} 13. Bf1 {[%emt 0:01:08]} Bd6 {[%emt 0:00:28]} 14. Nh4 {[%emt 0:00:36]} Ne7 {[%emt 0:00:41]} 15. Qe2 {[%emt 0:03:15]} c6 {[%emt 0:01:19]} 16. Qf3 {[%emt 0:00:32]} Nh7 {[%emt 0:02:59]} 17. Nh5 {[%emt 0:02:34]} Ng6 {[%emt 0:01:44]} 18. Qg3 {[%emt 0:00:11]} Ng5 {[%emt 0:00:58]} 19. Be2 {[%emt 0:03:35]} dxe4 {[%emt 0:01:28]} 20. Nxg6 {[%emt 0:01:20]} fxg6 {[%emt 0:00:09]} 21. h4 {[%emt 0:00:08]} exd3 {[%emt 0:01:11]} 22. hxg5 {[%emt 0:00:13]} dxe2 {[%emt 0:00:17]} 23. gxh6 {[%emt 0:00:04]} gxh5 {[%emt 0:00:11]} 24. Rxe2 {[%emt 0:00:20]} Qf7 {[%emt 0:00:23]} 25. Bg5 {[%emt 0:00:07]} Rd7 {[%emt 0:00:03]} 26. Rd1 {[%emt 0:00:13]} Bg4 {[%emt 0:00:07]} 0-1

[Event "European Online Club-ch-A 2021"]
[Site "Online"]
[Date "2021.03.27"]
[Round "5.14"]
[White "Hrbek, Stepan"]
[Black "Grinev, Valeriy"]
[Result "1/2-1/2"]
[ECO "B39"]
[WhiteElo "2230"]
[BlackElo "2441"]
[Annotator "NA"]
[PlyCount "81"]
[EventDate "2021.03.27"]
[EventType "team-tourn"]
[EventCountry "NET"]
[SourceTitle "playchess.com"]
[Source "ChessBase"]
[SourceQuality "1"]
[TimeControl "900+5"]

1. c4 {[%emt 0:00:00]} c5 {[%emt 0:00:03]} 2. Nf3 {[%emt 0:00:02]} Nc6 {[%emt 0:00:03]} 3. d4 {[%emt 0:00:02]} cxd4 {[%emt 0:00:02]} 4. Nxd4 {[%emt 0:00:01]} g6 {[%emt 0:00:02]} 5. e4 {[%emt 0:00:02]} Bg7 {[%emt 0:00:03]} 6. Be3 {[%emt 0:00:02]} Nf6 {[%emt 0:00:02]} 7. Nc3 {[%emt 0:00:03]} Ng4 {[%emt 0:00:02]} 8. Qxg4 {[%emt 0:00:02]} Nxd4 {[%emt 0:00:02]} 9. Qd1 {[%emt 0:00:01]} e5 {[%emt 0:00:02]} 10. Bd3 {[%emt 0:00:04]} O-O {[%emt 0:00:04]} 11. O-O {[%emt 0:00:18]} b6 {[%emt 0:00:03]} 12. Nd5 {[%emt 0:00:43]} Bb7 {[%emt 0:00:16]} 13. Rc1 {[%emt 0:00:39]} f5 {[%emt 0:01:20]} 14. Bxd4 {[%emt 0:00:52]} exd4 {[%emt 0:02:37]} 15. exf5 {[%emt 0:00:08]} Bxd5 {[%emt 0:00:33]} 16. cxd5 {[%emt 0:00:30]} gxf5 {[%emt 0:00:03]} 17. Qh5 {[%emt 0:02:18]} Qf6 {[%emt 0:01:20]} 18. Rfe1 {[%emt 0:00:06]} Qg6 {[%emt 0:00:13]} 19. Qxg6 {[%emt 0:03:57]} hxg6 {[%emt 0:00:03]} 20. Rc7 {[%emt 0:00:20]} Rfe8 {[%emt 0:00:27]} 21. Kf1 {[%emt 0:02:24]} Rxe1+ {[%emt 0:00:22]} 22. Kxe1 {[%emt 0:00:02]} d6 {[%emt 0:00:01]} 23. Bb5 {[%emt 0:00:20]} d3 {[%emt 0:02:06]} 24. b3 {[%emt 0:00:38]} a5 {[%emt 0:00:03]} 25. Kd2 {[%emt 0:00:21]} Bd4 {[%emt 0:00:22]} 26. f3 {[%emt 0:00:33]} Kh8 {[%emt 0:00:53]} 27. Kxd3 {[%emt 0:00:25]} Bg1 {[%emt 0:00:02]} 28. h3 {[%emt 0:00:12]} Rg8 {[%emt 0:00:02]} 29. Bd7 {[%emt 0:00:45]} Rg7 {[%emt 0:00:20]} 30. Rc8+ {[%emt 0:00:02]} Kh7 {[%emt 0:00:02]} 31. Be6 {[%emt 0:00:04]} Ra7 {[%emt 0:00:02]} 32. Kc4 {[%emt 0:01:19]} Kg7 {[%emt 0:00:22]} 33. Kb5 {[%emt 0:00:14]} Kf6 {[%emt 0:00:07]} 34. Rc6 {[%emt 0:00:11]} Bc5 {[%emt 0:00:04]} 35. a4 {[%emt 0:00:09]} Ke5 {[%emt 0:00:42]} 36. Rc8 {[%emt 0:00:03]} Rh7 {[%emt 0:00:06]} 37. Rg8 {[%emt 0:00:04]} Kf6 {[%emt 0:00:06]} 38. Rf8+ {[%emt 0:00:04]} Ke5 {[%emt 0:00:04]} 39. Rg8 {[%emt 0:00:02]} Kf6 {[%emt 0:00:01]} 40. Rf8+ {[%emt 0:00:07]} Ke5 {[%emt 0:00:02]} 41. Rg8 {[%emt 0:00:01]} 1/2-1/2

[Event "European Online Club-ch-A 2021"]
[Site "Online"]
[Date "2021.03.27"]
[Round "5.15"]
[White "Vovk, Orest"]
[Black "Nemec, Jachym"]
[Result "1/2-1/2"]
[ECO "A00"]
[WhiteElo "2315"]
[BlackElo "2229"]
[Annotator "NA"]
[PlyCount "200"]
[EventDate "2021.03.27"]
[EventType "team-tourn"]
[EventCountry "NET"]
[SourceTitle "playchess.com"]
[Source "ChessBase"]
[SourceQuality "1"]
[TimeControl "900+5"]

1. g4 {[%emt 0:00:00]} d5 {[%emt 0:00:05]} 2. h3 {[%emt 0:00:05]} e5 {[%emt 0:00:03]} 3. Bg2 {[%emt 0:00:01]} Be6 {[%emt 0:00:26]} 4. d3 {[%emt 0:00:13]} Nd7 {[%emt 0:00:04]} 5. c3 {[%emt 0:00:02]} Be7 {[%emt 0:00:37]} 6. Nf3 {[%emt 0:00:08]} Ngf6 {[%emt 0:00:15]} 7. Ng5 {[%emt 0:00:15]} O-O {[%emt 0:00:15]} 8. Nxe6 {[%emt 0:00:02]} fxe6 {[%emt 0:00:01]} 9. Nd2 {[%emt 0:00:41]} c6 {[%emt 0:00:07]} 10. Nf3 {[%emt 0:00:58]} Bd6 {[%emt 0:00:17]} 11. Qc2 {[%emt 0:00:24]} e4 {[%emt 0:01:03]} 12. dxe4 {[%emt 0:02:00]} Nxe4 {[%emt 0:00:02]} 13. Be3 {[%emt 0:00:04]} Qc7 {[%emt 0:01:14]} 14. Nd4 {[%emt 0:02:23]} Rae8 {[%emt 0:03:26]} 15. Bxe4 {[%emt 0:00:19]} dxe4 {[%emt 0:00:02]} 16. Qxe4 {[%emt 0:00:02]} Nc5 {[%emt 0:00:20]} 17. Qc2 {[%emt 0:00:11]} Bf4 {[%emt 0:00:57]} 18. Qc1 {[%emt 0:03:54]} Ne4 {[%emt 0:00:14]} 19. Bxf4 {[%emt 0:00:42]} Rxf4 {[%emt 0:00:04]} 20. f3 {[%emt 0:01:09]} Ng3 {[%emt 0:00:35]} 21. Rg1 {[%emt 0:00:22]} e5 {[%emt 0:00:08]} 22. Qe3 {[%emt 0:01:05]} Qf7 {[%emt 0:03:04]} 23. Nf5 {[%emt 0:01:03]} Nxf5 {[%emt 0:00:35]} 24. gxf5 {[%emt 0:00:01]} Rxf5 {[%emt 0:00:02]} 25. Qxa7 {[%emt 0:00:07]} e4 {[%emt 0:00:53]} 26. fxe4 {[%emt 0:00:21]} Rxe4 {[%emt 0:00:03]} 27. O-O-O {[%emt 0:00:04]} h6 {[%emt 0:00:08]} 28. Rd8+ {[%emt 0:00:18]} Kh7 {[%emt 0:00:08]} 29. Rd2 {[%emt 0:00:17]} Ree5 {[%emt 0:00:29]} 30. a3 {[%emt 0:00:08]} Rb5 {[%emt 0:00:34]} 31. Qd4 {[%emt 0:00:06]} Rf1+ {[%emt 0:00:41]} 32. Rxf1 {[%emt 0:00:02]} Qxf1+ {[%emt 0:00:02]} 33. Kc2 {[%emt 0:00:02]} Qf7 {[%emt 0:00:27]} 34. Qd3+ {[%emt 0:00:04]} Kg8 {[%emt 0:00:04]} 35. Qd8+ {[%emt 0:00:03]} Kh7 {[%emt 0:00:02]} 36. Qd3+ {[%emt 0:00:02]} Kg8 {[%emt 0:00:03]} 37. c4 {[%emt 0:00:03]} Rc5 {[%emt 0:00:07]} 38. Qd8+ {[%emt 0:00:02]} Kh7 {[%emt 0:00:02]} 39. Qd3+ {[%emt 0:00:02]} Kg8 {[%emt 0:00:02]} 40. Kc3 {[%emt 0:00:04]} b5 {[%emt 0:00:03]} 41. Qd8+ {[%emt 0:00:02]} Kh7 {[%emt 0:00:02]} 42. Qd3+ {[%emt 0:00:03]} Kg8 {[%emt 0:00:02]} 43. b3 {[%emt 0:00:04]} bxc4 {[%emt 0:00:08]} 44. bxc4 {[%emt 0:00:11]} Qa7 {[%emt 0:00:16]} 45. Qd8+ {[%emt 0:00:08]} Kh7 {[%emt 0:00:01]} 46. Qd3+ {[%emt 0:00:01]} Kg8 {[%emt 0:00:02]} 47. Kb2 {[%emt 0:00:07]} Qa4 {[%emt 0:00:15]} 48. Qd8+ {[%emt 0:00:04]} Kh7 {[%emt 0:00:01]} 49. Qd3+ {[%emt 0:00:03]} Kg8 {[%emt 0:00:01]} 50. Rc2 {[%emt 0:00:05]} Qa5 {[%emt 0:00:03]} 51. Qc3 {[%emt 0:00:13]} Qb6+ {[%emt 0:00:06]} 52. Qb4 {[%emt 0:00:06]} Qa7 {[%emt 0:00:08]} 53. e4 {[%emt 0:00:05]} Re5 {[%emt 0:00:03]} 54. c5 {[%emt 0:00:02]} Qe7 {[%emt 0:00:03]} 55. Rc4 {[%emt 0:00:09]} Qf6 {[%emt 0:00:02]} 56. Kb3 {[%emt 0:00:05]} Qf3+ {[%emt 0:00:06]} 57. Qc3 {[%emt 0:00:06]} Qd1+ {[%emt 0:00:13]} 58. Qc2 {[%emt 0:00:16]} Qf3+ {[%emt 0:00:06]} 59. Rc3 {[%emt 0:00:02]} Qf7+ {[%emt 0:00:11]} 60. Kb2 {[%emt 0:00:04]} Qf4 {[%emt 0:00:09]} 61. Rc4 {[%emt 0:00:07]} Qf3 {[%emt 0:00:09]} 62. Qc3 {[%emt 0:00:05]} Qe2+ {[%emt 0:00:05]} 63. Kb3 {[%emt 0:00:06]} Qd1+ {[%emt 0:00:01]} 64. Qc2 {[%emt 0:00:07]} Qf3+ {[%emt 0:00:02]} 65. Rc3 {[%emt 0:00:03]} Qf7+ {[%emt 0:00:03]} 66. Kb2 {[%emt 0:00:02]} Qe6 {[%emt 0:00:11]} 67. Qb3 {[%emt 0:00:06]} Rxe4 {[%emt 0:00:01]} 68. Qxe6+ {[%emt 0:00:02]} Rxe6 {[%emt 0:00:01]} 69. Kb3 {[%emt 0:00:07]} Re7 {[%emt 0:00:04]} 70. Kb4 {[%emt 0:00:05]} Rb7+ {[%emt 0:00:03]} 71. Ka5 {[%emt 0:00:03]} Rb5+ {[%emt 0:00:02]} 72. Ka6 {[%emt 0:00:02]} Kf7 {[%emt 0:00:11]} 73. a4 {[%emt 0:00:02]} Rb4 {[%emt 0:00:03]} 74. a5 {[%emt 0:00:03]} Rb5 {[%emt 0:00:03]} 75. Ra3 {[%emt 0:00:15]} Ke6 {[%emt 0:00:07]} 76. Ka7 {[%emt 0:00:08]} Kd5 {[%emt 0:00:04]} 77. a6 {[%emt 0:00:02]} Kxc5 {[%emt 0:00:05]} 78. Rf3 {[%emt 0:00:02]} Kd4 {[%emt 0:00:12]} 79. Rf7 {[%emt 0:00:05]} c5 {[%emt 0:00:03]} 80. Rxg7 {[%emt 0:00:05]} c4 {[%emt 0:00:03]} 81. Rg6 {[%emt 0:00:06]} h5 {[%emt 0:00:14]} 82. Rb6 {[%emt 0:00:08]} Rxb6 {[%emt 0:00:09]} 83. Kxb6 {[%emt 0:00:02]} c3 {[%emt 0:00:01]} 84. a7 {[%emt 0:00:02]} c2 {[%emt 0:00:01]} 85. a8=Q {[%emt 0:00:03]} c1=Q {[%emt 0:00:05]} 86. Qh8+ {[%emt 0:00:04]} Ke4 {[%emt 0:00:06]} 87. Qxh5 {[%emt 0:00:04]} Qb2+ {[%emt 0:00:02]} 88. Kc6 {[%emt 0:00:04]} Qc3+ {[%emt 0:00:05]} 89. Kd6 {[%emt 0:00:05]} Qb4+ {[%emt 0:00:08]} 90. Ke6 {[%emt 0:00:05]} Qb6+ {[%emt 0:00:03]} 91. Kf7 {[%emt 0:00:03]} Qc7+ {[%emt 0:00:07]} 92. Kg8 {[%emt 0:00:05]} Qd8+ {[%emt 0:00:07]} 93. Kg7 {[%emt 0:00:07]} Qe7+ {[%emt 0:00:07]} 94. Kh6 {[%emt 0:00:15]} Qf8+ {[%emt 0:00:05]} 95. Kh7 {[%emt 0:00:08]} Qe7+ {[%emt 0:00:02]} 96. Kg8 {[%emt 0:00:02]} Qd8+ {[%emt 0:00:04]} 97. Kg7 {[%emt 0:00:02]} Qe7+ {[%emt 0:00:03]} 98. Kh6 {[%emt 0:00:07]} Qf8+ {[%emt 0:00:03]} 99. Kh7 {[%emt 0:00:05]} Qe7+ {[%emt 0:00:01]} 100. Kg8 {[%emt 0:00:03]} Qd8+ {[%emt 0:00:03]} 1/2-1/2

[Event "European Online Club-ch-A 2021"]
[Site "Online"]
[Date "2021.03.27"]
[Round "5.16"]
[White "Smolik, Jachym"]
[Black "Hulka, Valentyn"]
[Result "1-0"]
[ECO "D95"]
[WhiteElo "2073"]
[BlackElo "2089"]
[Annotator "NA"]
[PlyCount "73"]
[EventDate "2021.03.27"]
[EventType "team-tourn"]
[EventCountry "NET"]
[SourceTitle "playchess.com"]
[Source "ChessBase"]
[SourceQuality "1"]
[TimeControl "900+5"]

1. d4 {[%emt 0:00:00]} Nf6 {[%emt 0:00:04]} 2. Nf3 {[%emt 0:00:03]} g6 {[%emt 0:00:02]} 3. c4 {[%emt 0:00:02]} Bg7 {[%emt 0:00:01]} 4. Nc3 {[%emt 0:00:02]} d5 {[%emt 0:00:01]} 5. Qb3 {[%emt 0:00:04]} c6 {[%emt 0:00:32]} 6. e3 {[%emt 0:00:20]} O-O {[%emt 0:00:04]} 7. Bd2 {[%emt 0:00:07]} a5 {[%emt 0:00:02]} 8. c5 {[%emt 0:00:19]} Nbd7 {[%emt 0:01:15]} 9. Na4 {[%emt 0:00:09]} Ne4 {[%emt 0:00:06]} 10. Bc3 {[%emt 0:00:37]} e5 {[%emt 0:00:47]} 11. Be2 {[%emt 0:01:15]} Qe7 {[%emt 0:03:49]} 12. Rc1 {[%emt 0:03:24]} Re8 {[%emt 0:00:53]} 13. O-O {[%emt 0:00:51]} Nxc3 {[%emt 0:03:00]} 14. bxc3 {[%emt 0:00:06]} e4 {[%emt 0:00:02]} 15. Nd2 {[%emt 0:00:06]} Qg5 {[%emt 0:00:03]} 16. Kh1 {[%emt 0:00:58]} Rb8 {[%emt 0:00:35]} 17. Rfe1 {[%emt 0:02:00]} Nf6 {[%emt 0:00:15]} 18. Nb6 {[%emt 0:00:50]} Bg4 {[%emt 0:00:47]} 19. Nf1 {[%emt 0:00:38]} Qh4 {[%emt 0:01:46]} 20. Kg1 {[%emt 0:00:09]} Bh6 {[%emt 0:00:28]} 21. c4 {[%emt 0:00:50]} Rbd8 {[%emt 0:00:13]} 22. cxd5 {[%emt 0:00:52]} Nxd5 {[%emt 0:00:02]} 23. Bc4 {[%emt 0:01:13]} Be6 {[%emt 0:00:23]} 24. Ng3 {[%emt 0:00:30]} f5 {[%emt 0:00:05]} 25. Bxd5 {[%emt 0:00:10]} cxd5 {[%emt 0:00:02]} 26. Ne2 {[%emt 0:00:22]} g5 {[%emt 0:00:05]} 27. c6 {[%emt 0:00:27]} bxc6 {[%emt 0:00:08]} 28. Rxc6 {[%emt 0:00:04]} Bf7 {[%emt 0:00:10]} 29. Rf6 {[%emt 0:00:20]} f4 {[%emt 0:00:42]} 30. g3 {[%emt 0:00:23]} Qh3 {[%emt 0:00:22]} 31. exf4 {[%emt 0:00:02]} Bg7 {[%emt 0:00:02]} 32. Rxf7 {[%emt 0:00:10]} Kxf7 {[%emt 0:00:01]} 33. Nxd5 {[%emt 0:00:09]} Qe6 {[%emt 0:00:01]} 34. Nec3 {[%emt 0:00:02]} Bxd4 {[%emt 0:00:06]} 35. Rxe4 {[%emt 0:00:05]} Qh3 {[%emt 0:00:25]} 36. Ne7+ {[%emt 0:00:13]} Kf8 {[%emt 0:00:07]} 37. Qg8# {[%emt 0:00:03]} 1-0